[Event "Titled Tuesday Blitz June 14 Late 2022"]
[White "Altman, Joshua"]
[Black "Fedoseev, Vladimir"]
[WhiteFideId "426210"]
[BlackFideId "24130737"]
[WhiteElo "1945"]
[BlackElo "2726"]
[Result "0-1"]
[Round "01"]
[TimeControl "180+1"]
[Date "2022.06.14"]
[WhiteClock "0:01:04"]
[BlackClock "0:01:03"]

1. d4 {[%clk 0:03:00]}  Nf6 {[%clk 0:02:48]} 2. c4 {[%clk 0:03:00]}  e6 {[%clk 0:02:48]} 3. Nf3 {[%clk 0:03:00]}  b6 {[%clk 0:02:47]} 4. g3 {[%clk 0:03:00]}  Bb7 {[%clk 0:02:47]} 5. Bg2 {[%clk 0:03:00]}  Be7 {[%clk 0:02:47]} 6. O-O {[%clk 0:03:00]}  O-O {[%clk 0:02:48]} 7. Nc3 {[%clk 0:03:01]}  Ne4 {[%clk 0:02:48]} 8. Bd2 {[%clk 0:03:01]}  f5 {[%clk 0:02:45]} 9. Qc2 {[%clk 0:03:01]}  Nxc3 {[%clk 0:02:43]} 10. Bxc3 {[%clk 0:03:02]}  Be4 {[%clk 0:02:43]} 11. Qc1 {[%clk 0:03:01]}  Bf6 {[%clk 0:02:43]} 12. Rd1 {[%clk 0:02:53]}  d5 {[%clk 0:02:40]} 13. b3 {[%clk 0:02:49]}  Nd7 {[%clk 0:02:39]} 14. Qb2 {[%clk 0:02:49]}  c6 {[%clk 0:02:37]} 15. Rac1 {[%clk 0:02:49]}  Rc8 {[%clk 0:02:37]} 16. Bf1 {[%clk 0:02:42]}  f4 {[%clk 0:02:27]} 17. Ne5 {[%clk 0:02:34]}  Bxe5 {[%clk 0:02:24]} 18. dxe5 {[%clk 0:02:33]}  fxg3 {[%clk 0:02:13]} 19. hxg3 {[%clk 0:02:33]}  Qg5 {[%clk 0:02:13]} 20. Bg2 {[%clk 0:02:24]}  Nc5 {[%clk 0:02:07]} 21. Bd2 {[%clk 0:02:18]}  Qg4 {[%clk 0:02:01]} 22. f3 {[%clk 0:02:09]}  Qxg3 {[%clk 0:01:59]} 23. Be1 {[%clk 0:02:09]}  Qg5 {[%clk 0:01:59]} 24. fxe4 {[%clk 0:02:10]}  Qe3+ {[%clk 0:01:55]} 25. Kh1 {[%clk 0:02:08]}  Nxe4 {[%clk 0:01:39]} 26. Qd4 {[%clk 0:02:08]}  Qh6+ {[%clk 0:01:37]} 27. Kg1 {[%clk 0:02:07]}  Rf4 {[%clk 0:01:37]} 28. Bd2 {[%clk 0:01:49]}  Nxd2 {[%clk 0:01:34]} 29. Qxd2 {[%clk 0:01:50]}  Rcf8 {[%clk 0:01:33]} 30. e3 {[%clk 0:01:44]}  Rf2 {[%clk 0:01:15]} 31. Qxf2 {[%clk 0:01:43]}  Rxf2 {[%clk 0:01:16]} 32. Kxf2 {[%clk 0:01:44]}  Qh4+ {[%clk 0:01:16]} 33. Ke2 {[%clk 0:01:41]}  Qh2 {[%clk 0:01:16]} 34. Kf2 {[%clk 0:01:34]}  Qxe5 {[%clk 0:01:12]} 35. cxd5 {[%clk 0:01:33]}  cxd5 {[%clk 0:01:12]} 36. Rc2 {[%clk 0:01:24]}  Qf5+ {[%clk 0:01:09]} 37. Kg1 {[%clk 0:01:19]}  Qxc2 {[%clk 0:01:09]} 38. Rf1 {[%clk 0:01:18]}  Qxa2 {[%clk 0:01:09]} 39. Bh3 {[%clk 0:01:19]}  g6 {[%clk 0:01:06]} 40. Bxe6+ {[%clk 0:01:19]}  Kg7 {[%clk 0:01:06]} 41. Rf7+ {[%clk 0:01:20]}  Kh6 {[%clk 0:01:06]} 42. Bxd5 {[%clk 0:01:17]}  Qd2 {[%clk 0:01:06]} 43. e4 {[%clk 0:01:16]}  a5 {[%clk 0:01:06]} 44. Rf2 {[%clk 0:01:13]}  Qd4 {[%clk 0:01:04]} 45. Kf1 {[%clk 0:01:12]}  Kg5 {[%clk 0:01:04]} 46. Rg2+ {[%clk 0:01:12]}  Kf4 {[%clk 0:01:04]} 47. Rf2+ {[%clk 0:01:12]}  Kg3 {[%clk 0:01:04]} 48. Rg2+ {[%clk 0:01:12]}  Kf3 {[%clk 0:01:04]} 49. Re2 {[%clk 0:01:04]}  Qd3 {[%clk 0:01:03]} 0-1


[Site "https://www.chess.com"]

[Event "Titled Tuesday Blitz June 14 Late 2022"]
[White "Andreikin, Dmitry"]
[Black "Goncalves, Davi Sulzbacher"]
[WhiteFideId "4158814"]
[BlackFideId "2154510"]
[WhiteElo "2736"]
[BlackElo "2107"]
[Result "1-0"]
[Round "01"]
[TimeControl "180+1"]
[Date "2022.06.14"]
[WhiteClock "0:01:40"]
[BlackClock "0:00:22"]

1. d4 {[%clk 0:03:00]}  Nf6 {[%clk 0:02:59]} 2. c4 {[%clk 0:03:00]}  g6 {[%clk 0:02:58]} 3. Nc3 {[%clk 0:03:00]}  d5 {[%clk 0:02:59]} 4. cxd5 {[%clk 0:03:00]}  Nxd5 {[%clk 0:03:00]} 5. e4 {[%clk 0:03:00]}  Nxc3 {[%clk 0:03:00]} 6. bxc3 {[%clk 0:03:00]}  Bg7 {[%clk 0:03:01]} 7. Be3 {[%clk 0:02:59]}  c5 {[%clk 0:03:01]} 8. Qd2 {[%clk 0:02:59]}  Qa5 {[%clk 0:02:58]} 9. Nf3 {[%clk 0:02:56]}  O-O {[%clk 0:02:55]} 10. Rc1 {[%clk 0:02:52]}  Rd8 {[%clk 0:02:48]} 11. d5 {[%clk 0:02:52]}  e6 {[%clk 0:02:46]} 12. Bg5 {[%clk 0:02:52]}  f6 {[%clk 0:02:46]} 13. Bf4 {[%clk 0:02:47]}  Qa4 {[%clk 0:02:41]} 14. c4 {[%clk 0:02:41]}  Nc6 {[%clk 0:02:35]} 15. Bd3 {[%clk 0:02:36]}  Nb4 {[%clk 0:02:22]} 16. Bb1 {[%clk 0:02:36]}  exd5 {[%clk 0:02:19]} 17. cxd5 {[%clk 0:02:29]}  b6 {[%clk 0:01:51]} 18. O-O {[%clk 0:02:27]}  Ba6 {[%clk 0:01:46]} 19. Rfe1 {[%clk 0:02:27]}  Rac8 {[%clk 0:01:32]} 20. h4 {[%clk 0:02:26]}  f5 {[%clk 0:01:06]} 21. h5 {[%clk 0:02:20]}  gxh5 {[%clk 0:01:01]} 22. Bh6 {[%clk 0:02:18]}  Qd7 {[%clk 0:00:55]} 23. Qg5 {[%clk 0:02:12]}  Qf7 {[%clk 0:00:43]} 24. a3 {[%clk 0:02:01]}  Nd3 {[%clk 0:00:42]} 25. Bxd3 {[%clk 0:01:58]}  Bxd3 {[%clk 0:00:40]} 26. Ne5 {[%clk 0:01:58]}  Qf6 {[%clk 0:00:26]} 27. Qxg7+ {[%clk 0:01:57]}  Qxg7 {[%clk 0:00:25]} 28. Bxg7 {[%clk 0:01:58]}  Bxe4 {[%clk 0:00:25]} 29. Bf6 {[%clk 0:01:53]}  Rd6 {[%clk 0:00:24]} 30. f3 {[%clk 0:01:51]}  Bxd5 {[%clk 0:00:24]} 31. Bg5 {[%clk 0:01:50]}  Re8 {[%clk 0:00:24]} 32. Bf4 {[%clk 0:01:48]}  Rde6 {[%clk 0:00:24]} 33. Rcd1 {[%clk 0:01:47]}  Bb7 {[%clk 0:00:25]} 34. Rd7 {[%clk 0:01:47]}  Bc8 {[%clk 0:00:24]} 35. Rxa7 {[%clk 0:01:46]}  c4 {[%clk 0:00:24]} 36. Kf2 {[%clk 0:01:45]}  b5 {[%clk 0:00:24]} 37. Rd1 {[%clk 0:01:40]}  Rxe5 {[%clk 0:00:21]} 38. Bxe5 {[%clk 0:01:40]}  Rxe5 {[%clk 0:00:22]} 39. Rd8+ {[%clk 0:01:40]} 1-0


[Site "https://www.chess.com"]

[Event "Titled Tuesday Blitz June 14 Late 2022"]
[White "Bernat, David"]
[Black "Djokic, Mihailo"]
[WhiteFideId "2099225"]
[BlackFideId "976440"]
[WhiteElo "2325"]
[BlackElo "2255"]
[Result "1-0"]
[Round "01"]
[TimeControl "180+1"]
[Date "2022.06.15"]
[WhiteClock "0:00:04"]
[BlackClock "0:00:02"]

1. c4 {[%clk 0:02:56]}  e5 {[%clk 0:02:59]} 2. Nc3 {[%clk 0:02:56]}  Nc6 {[%clk 0:02:58]} 3. g3 {[%clk 0:02:57]}  Bc5 {[%clk 0:02:58]} 4. Bg2 {[%clk 0:02:57]}  d6 {[%clk 0:02:58]} 5. e3 {[%clk 0:02:57]}  Bf5 {[%clk 0:02:59]} 6. d3 {[%clk 0:02:43]}  h5 {[%clk 0:02:54]} 7. h3 {[%clk 0:02:42]}  Nf6 {[%clk 0:02:54]} 8. Nge2 {[%clk 0:02:40]}  a6 {[%clk 0:02:54]} 9. a3 {[%clk 0:02:28]}  Qd7 {[%clk 0:02:51]} 10. b4 {[%clk 0:02:22]}  Ba7 {[%clk 0:02:50]} 11. Bb2 {[%clk 0:02:08]}  O-O {[%clk 0:02:24]} 12. Qd2 {[%clk 0:02:04]}  Rfe8 {[%clk 0:02:21]} 13. O-O-O {[%clk 0:01:42]}  Rab8 {[%clk 0:02:13]} 14. e4 {[%clk 0:01:20]}  Bg6 {[%clk 0:01:58]} 15. f4 {[%clk 0:01:20]}  Nd4 {[%clk 0:01:57]} 16. Nxd4 {[%clk 0:01:16]}  Bxd4 {[%clk 0:01:51]} 17. f5 {[%clk 0:01:14]}  Bh7 {[%clk 0:01:51]} 18. Ne2 {[%clk 0:00:59]}  Bxb2+ {[%clk 0:01:49]} 19. Kxb2 {[%clk 0:01:00]}  b5 {[%clk 0:01:47]} 20. g4 {[%clk 0:00:52]}  Qc6 {[%clk 0:01:17]} 21. g5 {[%clk 0:00:47]}  Nd7 {[%clk 0:00:44]} 22. g6 {[%clk 0:00:23]}  fxg6 {[%clk 0:00:42]} 23. Qg5 {[%clk 0:00:22]}  gxf5 {[%clk 0:00:38]} 24. exf5 {[%clk 0:00:23]}  e4 {[%clk 0:00:32]} 25. Nc3 {[%clk 0:00:16]}  bxc4 {[%clk 0:00:22]} 26. Nxe4 {[%clk 0:00:15]}  c3+ {[%clk 0:00:20]} 27. Nxc3 {[%clk 0:00:08]}  Qb6 {[%clk 0:00:11]} 28. Bd5+ {[%clk 0:00:06]}  Kh8 {[%clk 0:00:11]} 29. Rhg1 {[%clk 0:00:06]}  Qd4 {[%clk 0:00:09]} 30. Bf7 {[%clk 0:00:04]}  Re2+ {[%clk 0:00:04]} 31. Kb3 {[%clk 0:00:03]}  Rf2 {[%clk 0:00:04]} 32. Qxh5 {[%clk 0:00:03]}  Rxf5 {[%clk 0:00:03]} 33. Qg4 {[%clk 0:00:02]}  Rxf7 {[%clk 0:00:03]} 34. Qxd4 {[%clk 0:00:01]}  Ne5 {[%clk 0:00:03]} 35. Qd5 {[%clk 0:00:01]}  c6 {[%clk 0:00:03]} 36. Qg2 {[%clk 0:00:02]}  Bxd3 {[%clk 0:00:02]} 37. Ne4 {[%clk 0:00:01]}  Bc4+ {[%clk 0:00:03]} 38. Kb2 {[%clk 0:00:01]}  Bd5 {[%clk 0:00:03]} 39. Kc1 {[%clk 0:00:02]}  Nc4 {[%clk 0:00:02]} 40. Qg4 {[%clk 0:00:02]}  Kg8 {[%clk 0:00:02]} 41. Qh4 {[%clk 0:00:03]}  Ne3 {[%clk 0:00:02]} 42. Nf6+ {[%clk 0:00:02]}  Kf8 {[%clk 0:00:02]} 43. Qh8+ {[%clk 0:00:02]}  Ke7 {[%clk 0:00:03]} 44. Ng8+ {[%clk 0:00:02]}  Rxg8 {[%clk 0:00:03]} 45. Qh4+ {[%clk 0:00:03]}  Rf6 {[%clk 0:00:03]} 46. Qg5 {[%clk 0:00:04]}  Nf5 {[%clk 0:00:02]} 47. Rge1+ {[%clk 0:00:05]}  Kf7 {[%clk 0:00:02]} 48. Qf4 {[%clk 0:00:05]}  Be6 {[%clk 0:00:02]} 49. Qd2 {[%clk 0:00:06]}  d5 {[%clk 0:00:02]} 50. Qc2 {[%clk 0:00:06]}  Nd6 {[%clk 0:00:03]} 51. Qxc6 {[%clk 0:00:06]}  Nc4 {[%clk 0:00:02]} 52. Qc7+ {[%clk 0:00:06]}  Kg6 {[%clk 0:00:02]} 53. Rxe6 {[%clk 0:00:05]}  Rxe6 {[%clk 0:00:03]} 54. Qg3+ {[%clk 0:00:06]}  Kf7 {[%clk 0:00:02]} 55. Qf3+ {[%clk 0:00:06]}  Ke7 {[%clk 0:00:01]} 56. Qxd5 {[%clk 0:00:07]}  Rc8 {[%clk 0:00:02]} 57. Qd7+ {[%clk 0:00:07]}  Kf6 {[%clk 0:00:02]} 58. Rf1+ {[%clk 0:00:07]}  Ke5 {[%clk 0:00:01]} 59. Qxc8 {[%clk 0:00:07]}  Ne3 {[%clk 0:00:02]} 60. Qc5+ {[%clk 0:00:07]}  Ke4 {[%clk 0:00:02]} 61. Re1 {[%clk 0:00:07]}  Kf3 {[%clk 0:00:02]} 62. Qc3 {[%clk 0:00:05]}  Rc6 {[%clk 0:00:02]} 63. Qxc6+ {[%clk 0:00:04]} 1-0


[Site "https://www.chess.com"]

[Event "Titled Tuesday Blitz June 14 Late 2022"]
[White "Boder, Jan"]
[Black "Hambleton, Aman"]
[WhiteFideId "16243226"]
[BlackFideId "2606577"]
[WhiteElo "2064"]
[BlackElo "2552"]
[Result "0-1"]
[Round "01"]
[TimeControl "180+1"]
[Date "2022.06.15"]
[WhiteClock "0:00:01"]
[BlackClock "0:00:01"]

1. c4 {[%clk 0:02:59]}  c5 {[%clk 0:02:59]} 2. g3 {[%clk 0:02:59]}  e6 {[%clk 0:02:59]} 3. Nf3 {[%clk 0:02:58]}  b6 {[%clk 0:02:59]} 4. Bg2 {[%clk 0:02:59]}  Bb7 {[%clk 0:03:00]} 5. O-O {[%clk 0:02:59]}  Nf6 {[%clk 0:03:00]} 6. b3 {[%clk 0:02:59]}  Be7 {[%clk 0:02:59]} 7. Bb2 {[%clk 0:02:59]}  d6 {[%clk 0:03:00]} 8. Nc3 {[%clk 0:02:59]}  Nbd7 {[%clk 0:02:59]} 9. d4 {[%clk 0:02:59]}  cxd4 {[%clk 0:02:58]} 10. Nxd4 {[%clk 0:02:59]}  Bxg2 {[%clk 0:02:59]} 11. Kxg2 {[%clk 0:02:59]}  Qc7 {[%clk 0:02:59]} 12. Kg1 {[%clk 0:02:46]}  a6 {[%clk 0:02:48]} 13. Qd2 {[%clk 0:02:34]}  O-O {[%clk 0:02:39]} 14. Rac1 {[%clk 0:02:23]}  Rac8 {[%clk 0:02:39]} 15. Rfd1 {[%clk 0:02:22]}  Qb7 {[%clk 0:02:38]} 16. Ba3 {[%clk 0:01:56]}  Rfd8 {[%clk 0:02:26]} 17. Nf3 {[%clk 0:01:53]}  b5 {[%clk 0:02:15]} 18. cxb5 {[%clk 0:01:34]}  axb5 {[%clk 0:02:16]} 19. Bb4 {[%clk 0:01:13]}  Ne8 {[%clk 0:00:29]} 20. Nd4 {[%clk 0:01:07]}  Nc7 {[%clk 0:00:29]} 21. e3 {[%clk 0:00:30]}  Ne5 {[%clk 0:00:16]} 22. Qe2 {[%clk 0:00:30]}  Na6 {[%clk 0:00:14]} 23. Ba5 {[%clk 0:00:27]}  Re8 {[%clk 0:00:09]} 24. Ncxb5 {[%clk 0:00:27]}  Nc5 {[%clk 0:00:07]} 25. f4 {[%clk 0:00:20]}  Ned7 {[%clk 0:00:06]} 26. b4 {[%clk 0:00:19]}  Ne4 {[%clk 0:00:05]} 27. Nc7 {[%clk 0:00:16]}  Rf8 {[%clk 0:00:05]} 28. Nc6 {[%clk 0:00:16]}  Bf6 {[%clk 0:00:05]} 29. Nd4 {[%clk 0:00:13]}  d5 {[%clk 0:00:05]} 30. a4 {[%clk 0:00:12]}  Bd8 {[%clk 0:00:03]} 31. Ndb5 {[%clk 0:00:11]}  Bxc7 {[%clk 0:00:03]} 32. Rxc7 {[%clk 0:00:10]}  Rxc7 {[%clk 0:00:03]} 33. Nxc7 {[%clk 0:00:10]}  Rc8 {[%clk 0:00:04]} 34. Rc1 {[%clk 0:00:09]}  h5 {[%clk 0:00:04]} 35. Qxh5 {[%clk 0:00:04]}  d4 {[%clk 0:00:04]} 36. Qe2 {[%clk 0:00:02]}  Ndf6 {[%clk 0:00:02]} 37. exd4 {[%clk 0:00:01]}  Qa8 {[%clk 0:00:01]} 0-1


[Site "https://www.chess.com"]

[Event "Titled Tuesday Blitz June 14 Late 2022"]
[White "Bortnyk, Olexandr"]
[Black "Moral Garcia, Serafin"]
[WhiteFideId "14120828"]
[BlackFideId "2201925"]
[WhiteElo "2723"]
[BlackElo "2251"]
[Result "1-0"]
[Round "01"]
[TimeControl "180+1"]
[Date "2022.06.14"]
[WhiteClock "0:02:44"]
[BlackClock "0:01:06"]

1. d4 {[%clk 0:03:00]}  Nf6 {[%clk 0:02:38]} 2. Nc3 {[%clk 0:03:01]}  d5 {[%clk 0:02:37]} 3. Bf4 {[%clk 0:02:54]}  g6 {[%clk 0:02:34]} 4. e3 {[%clk 0:02:54]}  Bg7 {[%clk 0:02:34]} 5. h4 {[%clk 0:02:54]}  h5 {[%clk 0:02:31]} 6. Nb5 {[%clk 0:02:53]}  Na6 {[%clk 0:02:28]} 7. Nf3 {[%clk 0:02:53]}  c6 {[%clk 0:02:22]} 8. Nc3 {[%clk 0:02:52]}  Nc7 {[%clk 0:02:01]} 9. Ne5 {[%clk 0:02:52]}  O-O {[%clk 0:01:56]} 10. Bd3 {[%clk 0:02:50]}  Ng4 {[%clk 0:01:47]} 11. Nxg4 {[%clk 0:02:48]}  Bxg4 {[%clk 0:01:47]} 12. f3 {[%clk 0:02:49]}  Be6 {[%clk 0:01:47]} 13. g4 {[%clk 0:02:49]}  hxg4 {[%clk 0:01:37]} 14. fxg4 {[%clk 0:02:50]}  Qd7 {[%clk 0:01:34]} 15. Rg1 {[%clk 0:02:48]}  Bf6 {[%clk 0:01:13]} 16. g5 {[%clk 0:02:44]}  Bg7 {[%clk 0:01:13]} 17. h5 {[%clk 0:02:45]}  Bf5 {[%clk 0:01:06]} 18. Bxf5 {[%clk 0:02:45]}  Qxf5 {[%clk 0:01:06]} 19. Bxc7 {[%clk 0:02:44]} 1-0


[Site "https://www.chess.com"]

[Event "Titled Tuesday Blitz June 14 Late 2022"]
[White "Cruz Mendez, Jean Marco"]
[Black "Kamsky, Gata"]
[WhiteFideId "3526402"]
[BlackFideId "2000024"]
[WhiteElo "2064"]
[BlackElo "2645"]
[Result "0-1"]
[Round "01"]
[TimeControl "180+1"]
[Date "2022.06.14"]
[WhiteClock "0:01:25"]
[BlackClock "0:01:48"]

1. Nf3 {[%clk 0:02:59]}  g6 {[%clk 0:02:59]} 2. d4 {[%clk 0:02:58]}  Bg7 {[%clk 0:03:00]} 3. b3 {[%clk 0:02:58]}  Nf6 {[%clk 0:02:58]} 4. Bb2 {[%clk 0:02:59]}  O-O {[%clk 0:02:59]} 5. e3 {[%clk 0:03:00]}  c5 {[%clk 0:02:58]} 6. Nbd2 {[%clk 0:03:00]}  cxd4 {[%clk 0:02:58]} 7. Nxd4 {[%clk 0:03:01]}  d6 {[%clk 0:02:51]} 8. c4 {[%clk 0:03:00]}  Nc6 {[%clk 0:02:40]} 9. N2f3 {[%clk 0:03:00]}  Qa5+ {[%clk 0:02:38]} 10. Qd2 {[%clk 0:02:50]}  Qxd2+ {[%clk 0:02:38]} 11. Nxd2 {[%clk 0:02:51]}  Nd7 {[%clk 0:02:28]} 12. N2f3 {[%clk 0:02:48]}  Nc5 {[%clk 0:02:25]} 13. O-O-O {[%clk 0:02:32]}  a5 {[%clk 0:02:21]} 14. Nb5 {[%clk 0:02:11]}  Ne4 {[%clk 0:02:16]} 15. Bxg7 {[%clk 0:01:58]}  Kxg7 {[%clk 0:02:15]} 16. Rd2 {[%clk 0:01:51]}  Nxd2 {[%clk 0:02:14]} 17. Nxd2 {[%clk 0:01:52]}  Bd7 {[%clk 0:02:12]} 18. Kb2 {[%clk 0:01:51]}  a4 {[%clk 0:02:10]} 19. Bd3 {[%clk 0:01:45]}  axb3 {[%clk 0:02:09]} 20. axb3 {[%clk 0:01:46]}  Nb4 {[%clk 0:02:09]} 21. Bb1 {[%clk 0:01:47]}  Ra5 {[%clk 0:02:04]} 22. Nc3 {[%clk 0:01:43]}  b5 {[%clk 0:02:02]} 23. f3 {[%clk 0:01:40]}  Rb8 {[%clk 0:02:00]} 24. Rc1 {[%clk 0:01:36]}  bxc4 {[%clk 0:01:59]} 25. Nxc4 {[%clk 0:01:37]}  Ra7 {[%clk 0:01:59]} 26. e4 {[%clk 0:01:34]}  Be6 {[%clk 0:01:58]} 27. Ne3 {[%clk 0:01:34]}  Na6 {[%clk 0:01:52]} 28. Ned5 {[%clk 0:01:30]}  Nc5 {[%clk 0:01:51]} 29. Bc2 {[%clk 0:01:30]}  Rab7 {[%clk 0:01:50]} 30. b4 {[%clk 0:01:27]}  Na6 {[%clk 0:01:50]} 31. b5 {[%clk 0:01:26]}  Bxd5 {[%clk 0:01:49]} 32. exd5 {[%clk 0:01:26]}  Nc7 {[%clk 0:01:49]} 33. Bd3 {[%clk 0:01:26]}  Nxb5 {[%clk 0:01:48]} 34. Bxb5 {[%clk 0:01:24]}  Rxb5+ {[%clk 0:01:49]} 35. Nxb5 {[%clk 0:01:25]}  Rxb5+ {[%clk 0:01:48]} 0-1


[Site "https://www.chess.com"]

[Event "Titled Tuesday Blitz June 14 Late 2022"]
[White "Dubov, Daniil"]
[Black "Mortazavi, Ali"]
[WhiteFideId "24126055"]
[BlackFideId "401323"]
[WhiteElo "2791"]
[BlackElo "2339"]
[Result "1-0"]
[Round "01"]
[TimeControl "180+1"]
[Date "2022.06.14"]
[WhiteClock "0:01:58"]
[BlackClock "0:00:41"]

1. c4 {[%clk 0:03:00]}  Nf6 {[%clk 0:02:59]} 2. Nc3 {[%clk 0:03:01]}  g6 {[%clk 0:03:00]} 3. e4 {[%clk 0:03:01]}  d6 {[%clk 0:03:00]} 4. d4 {[%clk 0:03:01]}  Bg7 {[%clk 0:03:01]} 5. f4 {[%clk 0:03:02]}  O-O {[%clk 0:03:01]} 6. Nf3 {[%clk 0:03:03]}  c5 {[%clk 0:03:02]} 7. d5 {[%clk 0:03:03]}  e6 {[%clk 0:03:02]} 8. dxe6 {[%clk 0:03:04]}  Bxe6 {[%clk 0:03:02]} 9. Bd3 {[%clk 0:03:03]}  Bg4 {[%clk 0:03:01]} 10. O-O {[%clk 0:03:00]}  Nc6 {[%clk 0:03:02]} 11. h3 {[%clk 0:02:56]}  Bxf3 {[%clk 0:03:01]} 12. Qxf3 {[%clk 0:02:57]}  a6 {[%clk 0:02:57]} 13. Be3 {[%clk 0:02:41]}  Rb8 {[%clk 0:02:56]} 14. Rad1 {[%clk 0:02:40]}  Nd4 {[%clk 0:02:43]} 15. Qf2 {[%clk 0:02:36]}  Re8 {[%clk 0:02:27]} 16. a4 {[%clk 0:02:31]}  Qa5 {[%clk 0:02:17]} 17. f5 {[%clk 0:02:29]}  Qb4 {[%clk 0:02:07]} 18. Bg5 {[%clk 0:02:24]}  Nd7 {[%clk 0:01:51]} 19. fxg6 {[%clk 0:02:23]}  fxg6 {[%clk 0:01:46]} 20. Qf7+ {[%clk 0:02:21]}  Kh8 {[%clk 0:01:47]} 21. Qxd7 {[%clk 0:02:21]}  Qxb2 {[%clk 0:01:41]} 22. Nd5 {[%clk 0:02:21]}  Rf8 {[%clk 0:01:27]} 23. Qxd6 {[%clk 0:02:10]}  Rbe8 {[%clk 0:01:06]} 24. Bf6 {[%clk 0:02:05]}  Bxf6 {[%clk 0:01:03]} 25. Nxf6 {[%clk 0:02:06]}  Nf5 {[%clk 0:00:41]} 26. Nxe8 {[%clk 0:02:00]}  Nxd6 {[%clk 0:00:41]} 27. Rxf8# {[%clk 0:01:58]} 1-0


[Site "https://www.chess.com"]

[Event "Titled Tuesday Blitz June 14 Late 2022"]
[White "Eynullayev, Atilla"]
[Black "Svane, Rasmus"]
[WhiteFideId "13413570"]
[BlackFideId "4657101"]
[WhiteElo "1936"]
[BlackElo "2674"]
[Result "0-1"]
[Round "01"]
[TimeControl "180+1"]
[Date "2022.06.14"]
[WhiteClock "0:00:09"]
[BlackClock "0:00:22"]

1. e4 {[%clk 0:03:00]}  c6 {[%clk 0:02:59]} 2. d4 {[%clk 0:03:00]}  d5 {[%clk 0:03:00]} 3. e5 {[%clk 0:03:00]}  Bf5 {[%clk 0:03:00]} 4. Bd3 {[%clk 0:03:01]}  Bxd3 {[%clk 0:03:00]} 5. Qxd3 {[%clk 0:03:02]}  Qa5+ {[%clk 0:03:00]} 6. Nc3 {[%clk 0:02:59]}  e6 {[%clk 0:03:00]} 7. Ne2 {[%clk 0:02:59]}  c5 {[%clk 0:02:58]} 8. Bd2 {[%clk 0:02:57]}  Qa6 {[%clk 0:02:35]} 9. Qh3 {[%clk 0:02:49]}  Nc6 {[%clk 0:02:33]} 10. dxc5 {[%clk 0:02:31]}  Bxc5 {[%clk 0:02:32]} 11. Qg3 {[%clk 0:02:29]}  Nge7 {[%clk 0:02:20]} 12. O-O {[%clk 0:01:41]}  O-O {[%clk 0:02:16]} 13. Rfe1 {[%clk 0:01:23]}  Nf5 {[%clk 0:02:08]} 14. Qf4 {[%clk 0:01:23]}  Rac8 {[%clk 0:02:03]} 15. a3 {[%clk 0:01:18]}  Ncd4 {[%clk 0:01:55]} 16. Rac1 {[%clk 0:01:00]}  Nxe2+ {[%clk 0:01:47]} 17. Nxe2 {[%clk 0:01:00]}  Rfd8 {[%clk 0:01:41]} 18. Bb4 {[%clk 0:00:38]}  Bxb4 {[%clk 0:01:38]} 19. Qxb4 {[%clk 0:00:39]}  Rc4 {[%clk 0:01:34]} 20. Qd2 {[%clk 0:00:38]}  Rdc8 {[%clk 0:01:29]} 21. c3 {[%clk 0:00:38]}  b5 {[%clk 0:01:27]} 22. Nd4 {[%clk 0:00:31]}  Nxd4 {[%clk 0:01:27]} 23. cxd4 {[%clk 0:00:31]}  Qc6 {[%clk 0:01:28]} 24. Rxc4 {[%clk 0:00:31]}  Qxc4 {[%clk 0:01:27]} 25. f3 {[%clk 0:00:24]}  h6 {[%clk 0:01:26]} 26. Re2 {[%clk 0:00:24]}  a5 {[%clk 0:01:25]} 27. Kf2 {[%clk 0:00:24]}  b4 {[%clk 0:01:24]} 28. axb4 {[%clk 0:00:25]}  axb4 {[%clk 0:01:25]} 29. Qe3 {[%clk 0:00:25]}  Qa2 {[%clk 0:01:19]} 30. g4 {[%clk 0:00:24]}  b3 {[%clk 0:01:18]} 31. Qd3 {[%clk 0:00:23]}  Rc4 {[%clk 0:01:16]} 32. h4 {[%clk 0:00:22]}  Qa4 {[%clk 0:01:15]} 33. Rd2 {[%clk 0:00:22]}  g6 {[%clk 0:01:10]} 34. h5 {[%clk 0:00:21]}  g5 {[%clk 0:01:10]} 35. Kg3 {[%clk 0:00:20]}  Rc2 {[%clk 0:01:09]} 36. f4 {[%clk 0:00:20]}  gxf4+ {[%clk 0:00:58]} 37. Kxf4 {[%clk 0:00:21]}  Qc4 {[%clk 0:00:59]} 38. Ke3 {[%clk 0:00:21]}  Qc7 {[%clk 0:00:52]} 39. Qxb3 {[%clk 0:00:20]}  Rc1 {[%clk 0:00:52]} 40. Rd3 {[%clk 0:00:15]}  Qd8 {[%clk 0:00:50]} 41. Rc3 {[%clk 0:00:13]}  Qg5+ {[%clk 0:00:49]} 42. Kd3 {[%clk 0:00:14]}  Rf1 {[%clk 0:00:41]} 43. Qb8+ {[%clk 0:00:12]}  Kg7 {[%clk 0:00:34]} 44. Kc2 {[%clk 0:00:13]}  Qc1+ {[%clk 0:00:30]} 45. Kb3 {[%clk 0:00:13]}  Qd1+ {[%clk 0:00:30]} 46. Ka3 {[%clk 0:00:12]}  Qxd4 {[%clk 0:00:23]} 47. Rc8 {[%clk 0:00:09]}  Rf3+ {[%clk 0:00:22]} 48. Ka2 {[%clk 0:00:09]}  Qa4+ {[%clk 0:00:22]} 49. Kb1 {[%clk 0:00:08]}  Rf1+ {[%clk 0:00:22]} 50. Rc1 {[%clk 0:00:09]}  Qe4+ {[%clk 0:00:22]} 0-1


[Site "https://www.chess.com"]